bitfinex/quotes_BTCUSD_20250414
["timestamp","ask_amount","ask_price","bid_price","bid_amount"]
[1744644418352,0.22918239,84687.0,84686.0,0.00956006]
[1744644418552,0.236244,84658.0,84652.0,0.011813]
[1744644418800,0.236243,84659.0,84650.0,0.248079]
[1744644418959,0.236243,84659.0,84653.0,0.011812]
[1744644419477,0.236243,84659.0,84654.0,0.011812]
[1744644419695,0.236243,84659.0,84649.0,0.011813]
[1744644419896,0.236243,84659.0,84652.0,0.011813]
[1744644420100,0.236243,84659.0,84651.0,0.0118136]
[1744644420301,0.236243,84659.0,84651.0,6e-07]
[1744644420663,0.236243,84659.0,84654.0,0.011812]
[1744644420876,0.0482,84675.0,84668.0,0.01181]
[1744644421080,0.0482,84686.0,84680.0,0.011809]
[1744644421339,0.0455,84687.0,84684.0,0.23617]
[1744644421340,0.02148181,84685.0,84684.0,0.23617]
[1744644421750,0.00013829,84687.0,84686.0,0.236166]
[1744644422053,0.236191,84678.0,84671.0,0.34]
[1744644422225,0.011808,84686.0,84679.0,0.011809]
[1744644422549,0.01194629,84687.0,84682.0,0.011808]
[1744644422752,0.01194629,84687.0,84671.0,0.34]
[1744644422753,0.011809,84677.0,84671.0,0.34]
[1744644422982,0.23630329,84687.0,84682.0,0.236177]
[1744644422983,0.00013829,84687.0,84682.0,0.236177]
[1744644423131,0.24811229,84687.0,84681.0,0.011809]
[1744644423544,0.236177,84682.0,84673.0,0.2362]
[1744644423716,0.247978,84685.0,84675.0,0.011809]
[1744644423952,0.236172,84684.0,84677.0,0.247959]
[1744644424157,0.236172,84684.0,84676.0,0.011809]
[1744644424158,0.011809,84675.0,84663.0,0.16296]
[1744644424399,0.011811,84660.0,84652.0,0.011813]
[1744644424598,0.011811,84660.0,84655.0,0.011812]
[1744644424774,0.011811,84661.0,84653.0,0.236257]
[1744644424974,0.236244,84659.0,84651.0,6e-07]
[1744644426495,0.02148022,84658.0,84657.0,0.001422]
[1744644426855,0.02148022,84658.0,84657.0,0.002422]
[1744644427052,0.236244,84659.0,84657.0,0.002422]
[1744644427709,0.236244,84659.0,84657.0,0.000422]
[1744644427868,0.02146471,84658.0,84657.0,0.001422]
[1744644428107,0.02146471,84658.0,84657.0,0.002422]
[1744644428290,0.02146471,84658.0,84657.0,0.000422]
[1744644428716,0.25770871,84658.0,84657.0,0.002422]
[1744644429179,0.02146471,84658.0,84657.0,0.002422]
[1744644429737,0.02146471,84658.0,84657.0,0.001422]
[1744644429738,0.14230625,84658.0,84657.0,0.001422]
[1744644430090,0.14230625,84658.0,84657.0,0.000422]
[1744644430265,0.55880604,84658.0,84657.0,0.001422]
[1744644430463,0.55880604,84658.0,84657.0,0.000422]
[1744644430664,0.57334689,84658.0,84657.0,0.000422]
[1744644430859,0.58409022,84658.0,84657.0,0.000422]
[1744644431024,0.63159022,84658.0,84657.0,0.000422]
[1744644431222,0.68733822,84658.0,84657.0,0.001422]
[1744644431438,0.67719022,84658.0,84657.0,0.001422]
[1744644431649,0.61704937,84658.0,84657.0,0.000422]
[1744644431871,0.44870783,84658.0,84657.0,0.000422]
[1744644432071,0.44870783,84658.0,84657.0,0.001422]
[1744644432290,0.4379645,84658.0,84657.0,0.001422]
[1744644432490,0.6742085,84658.0,84657.0,0.000422]
[1744644432748,0.4379645,84658.0,84657.0,0.000422]
[1744644433074,0.4409645,84658.0,84657.0,0.000422]
[1744644433282,0.02446471,84658.0,84657.0,0.000422]
[1744644433481,0.03146471,84658.0,84657.0,0.236669]
[1744644433616,0.003,84658.0,84657.0,0.236669]
[1744644434043,0.007,84658.0,84657.0,0.236669]
[1744644434251,0.01181,84668.0,84663.0,0.011811]
[1744644434406,0.001,84658.0,84657.0,0.000422]
[1744644434605,0.003,84658.0,84657.0,0.000422]
[1744644434873,0.17354154,84658.0,84657.0,0.000422]
[1744644435063,0.17154154,84658.0,84657.0,0.000422]
[1744644435264,0.24154409,84658.0,84657.0,0.000422]
[1744644436061,0.2492943,84658.0,84657.0,0.000422]
[1744644436202,0.2512943,84658.0,84657.0,0.000422]
[1744644436407,0.2512943,84658.0,84651.0,6e-07]
[1744644436408,0.25080185,84652.0,84651.0,6e-07]
[1744644436612,0.71164339,84652.0,84651.0,0.00013903]
[1744644436829,0.75824339,84652.0,84651.0,0.00013903]
[1744644437010,0.79049615,84652.0,84651.0,0.00013903]
[1744644437399,0.79049615,84652.0,84651.0,3e-08]
[1744644437600,0.79049615,84652.0,84648.0,0.0008446]
[1744644437601,0.236269,84649.0,84648.0,6.3e-07]
[1744644437822,0.37861309,84649.0,84648.0,6.3e-07]
[1744644438040,0.3893633,84649.0,84648.0,6.3e-07]
[1744644438409,1.16040394,84649.0,84648.0,6.3e-07]
[1744644438612,0.25084685,84636.0,84635.0,0.0004225]
[1744644438851,0.83468818,84636.0,84635.0,0.00050413]
[1744644439168,0.85619073,84636.0,84635.0,0.00050413]
[1744644439375,0.86694094,84636.0,84635.0,0.00050413]
[1744644440085,0.91204094,84636.0,84635.0,0.00050413]
[1744644440238,1.25204094,84636.0,84635.0,0.00050413]
[1744644440434,1.30846637,84636.0,84635.0,0.00050413]
[1744644440636,1.30846637,84636.0,84623.0,0.000422]
[1744644440637,0.25085785,84632.0,84623.0,0.000422]
[1744644440884,1.12819918,84632.0,84631.0,4e-07]
[1744644441111,1.12819918,84632.0,84617.0,8e-07]
[1744644441112,0.236356,84618.0,84617.0,8e-07]
[1744644441316,1.33991818,84618.0,84617.0,0.00013908]
[1744644441442,1.36142073,84618.0,84617.0,0.00013908]
[1744644441879,1.19854073,84618.0,84617.0,0.00013908]
[1744644442085,0.85475009,84618.0,84617.0,0.00013908]
[1744644443304,0.85475009,84618.0,84617.0,0.00113908]
[1744644443305,0.86275009,84618.0,84617.0,0.00113908]
[1744644443526,0.62639409,84618.0,84617.0,0.00113908]
[1744644443698,0.04425276,84618.0,84617.0,0.00113908]
[1744644443904,0.03625276,84618.0,84617.0,0.00013908]
[1744644444139,0.03225276,84618.0,84617.0,0.00013908]
[1744644444342,0.03825276,84618.0,84617.0,0.00013908]
[1744644444549,0.04025276,84618.0,84617.0,0.00013908]
[1744644444920,0.03825276,84618.0,84617.0,0.00013908]
[1744644445301,0.1610943,84618.0,84617.0,0.00013908]
[1744644445615,0.1550943,84618.0,84617.0,0.00013908]
[1744644445826,0.1600943,84618.0,84617.0,0.00013908]
[1744644446208,0.62872918,84618.0,84617.0,0.00013908]
[1744644446406,0.51463515,84618.0,84617.0,0.00013908]
[1744644447327,0.27560876,84618.0,84617.0,0.00013908]
[1744644447627,0.03925276,84618.0,84617.0,0.00013908]
[1744644448083,0.1600943,84618.0,84617.0,0.00013908]
[1744644450104,0.17463611,84618.0,84617.0,0.00013908]
[1744644452876,0.26803611,84618.0,84617.0,0.00013908]
[1744644453656,0.6845359,84618.0,84617.0,0.00013908]
[1744644454429,0.8474559,84618.0,84617.0,0.00013908]
[1744644454802,1.0838119,84618.0,84617.0,0.00013908]
[1744644455003,1.4238119,84618.0,84617.0,8e-08]
[1744644456171,1.4218119,84618.0,84617.0,8e-08]
[1744644456562,1.4208119,84618.0,84617.0,8e-08]
[1744644457012,1.4298119,84618.0,84617.0,0.00100008]
[1744644459044,1.4298119,84618.0,84617.0,8e-08]
[1744644464042,1.4298119,84618.0,84601.0,0.0004221]
[1744644464043,0.236401,84602.0,84601.0,1.8e-07]
[1744644464189,0.71178339,84602.0,84601.0,1.8e-07]
[1744644464394,0.7225336,84602.0,84601.0,1.8e-07]
[1744644464597,0.74403711,84602.0,84601.0,1.8e-07]
[1744644464914,0.75445145,84602.0,84601.0,1.8e-07]
[1744644465322,0.236428,84592.0,84591.0,1.8e-07]
[1744644465476,1.12831018,84592.0,84591.0,1.8e-07]
[1744644465679,1.14981369,84592.0,84591.0,1.8e-07]
[1744644466865,1.1675639,84592.0,84591.0,1.8e-07]
[1744644467013,1.1705639,84592.0,84591.0,1.8e-07]
[1744644467609,1.1675639,84592.0,84591.0,1.8e-07]
[1744644468007,1.1675639,84592.0,84583.0,0.0004223]
[1744644468008,0.236451,84584.0,84583.0,0.0004223]
[1744644468212,0.37183339,84584.0,84583.0,0.0004223]
[1744644468653,0.3933369,84584.0,84583.0,0.0004223]
[1744644468839,0.40408711,84584.0,84583.0,0.0004223]
[1744644469560,0.40608711,84584.0,84583.0,0.0004223]
[1744644470175,0.74908711,84584.0,84583.0,0.0004223]
[1744644470374,0.79658711,84584.0,84583.0,0.0004223]
[1744644471375,1.2130869,84584.0,84583.0,0.0004223]
[1744644472543,1.2130869,84584.0,84583.0,3e-07]
[1744644473408,1.2100869,84584.0,84583.0,3e-07]
[1744644473609,1.2140869,84584.0,84583.0,3e-07]
[1744644474020,1.2100869,84584.0,84583.0,3e-07]
[1744644474247,1.2080869,84584.0,84583.0,3e-07]
[1744644474486,1.2190869,84584.0,84583.0,0.0010003]
[1744644474692,1.2130869,84584.0,84583.0,3e-07]
[1744644474826,1.2080869,84584.0,84583.0,3e-07]
[1744644475041,1.2170869,84584.0,84583.0,3e-07]
[1744644476285,1.2220869,84584.0,84583.0,3e-07]
[1744644477957,0.59102285,84573.0,84572.0,6e-07]
[1744644478163,1.22616418,84573.0,84572.0,6e-07]
[1744644478720,1.2584179,84573.0,84572.0,6e-07]
[1744644479257,1.2644179,84573.0,84572.0,0.00113911]
[1744644479840,1.2674179,84573.0,84572.0,0.00113911]
[1744644480577,1.2674179,84573.0,84572.0,1.1e-07]
[1744644480813,0.59105285,84562.0,84561.0,1.1e-07]
[1744644480977,1.12839418,84562.0,84561.0,1.1e-07]
[1744644481177,1.14989769,84562.0,84561.0,1.1e-07]
[1744644481617,1.1606479,84562.0,84561.0,1.1e-07]
[1744644482202,1.1666479,84562.0,84561.0,0.00100011]
[1744644482870,0.59106485,84558.0,84557.0,7.1e-07]
[1744644483064,0.7677566,84558.0,84557.0,7.1e-07]
[1744644483633,0.67981369,84558.0,84557.0,7.1e-07]
[1744644483834,0.66046352,84558.0,84557.0,7.1e-07]
[1744644484440,0.66746352,84558.0,84557.0,0.00100071]
[1744644484646,0.62236352,84558.0,84557.0,0.00100071]
[1744644485476,0.62236352,84558.0,84557.0,7.1e-07]
[1744644486038,1.03886331,84558.0,84557.0,7.1e-07]
[1744644487366,1.0173598,84558.0,84557.0,7.1e-07]
[1744644487770,1.00281895,84558.0,84557.0,7.1e-07]
[1744644488863,0.99206874,84558.0,84557.0,7.1e-07]
[1744644489487,1.00660959,84558.0,84557.0,7.1e-07]
[1744644489820,1.00646959,84558.0,84557.0,7.1e-07]
[1744644491247,1.01724551,84558.0,84557.0,7.1e-07]
[1744644491587,1.03880336,84558.0,84557.0,7.1e-07]
[1744644497502,1.01724551,84558.0,84557.0,7.1e-07]
[1744644497704,1.01724551,84558.0,84522.0,0.02222114]
[1744644497705,0.34,84550.0,84549.0,6.1e-07]
[1744644498054,0.93728218,84550.0,84549.0,6.1e-07]
[1744644498348,0.98298218,84550.0,84549.0,6.1e-07]
[1744644498656,1.00456525,84550.0,84549.0,6.1e-07]
[1744644498786,1.01534117,84550.0,84549.0,6.1e-07]
[1744644498989,1.02334117,84550.0,84549.0,0.00100061]
[1744644499521,1.02034117,84550.0,84549.0,0.00100061]
[1744644500040,1.0027581,84550.0,84549.0,0.00100061]
[1744644500456,0.9977581,84550.0,84549.0,6.1e-07]
[1744644500768,1.1946041,84550.0,84549.0,6.1e-07]
[1744644500980,1.18382818,84550.0,84549.0,6.1e-07]
[1744644501331,1.13842818,84550.0,84549.0,6.1e-07]
[1744644501933,0.78388733,84550.0,84549.0,6.1e-07]
[1744644503474,0.77788733,84550.0,84549.0,6.1e-07]
[1744644503678,0.77388733,84550.0,84549.0,6.1e-07]
[1744644503879,0.77788733,84550.0,84549.0,6.1e-07]
[1744644504079,0.78088733,84550.0,84549.0,6.1e-07]
[1744644504275,0.36438754,84550.0,84549.0,6.1e-07]
[1744644504501,0.243546,84550.0,84549.0,6.1e-07]
[1744644516643,0.007,84550.0,84549.0,6.1e-07]
[1744644516864,0.003,84550.0,84549.0,6.1e-07]
[1744644517242,0.001,84550.0,84549.0,6.1e-07]
[1744644517678,0.002,84550.0,84549.0,0.23654961]
[1744644518082,0.002,84550.0,84549.0,6.1e-07]
[1744644518278,0.238546,84550.0,84549.0,6.1e-07]
[1744644519348,0.002,84550.0,84549.0,0.32654961]
[1744644520231,0.238546,84550.0,84549.0,6.1e-07]
[1744644520562,0.236546,84550.0,84549.0,6.1e-07]
[1744644520694,0.236546,84550.0,84549.0,0.00100061]
[1744644521100,0.236546,84550.0,84549.0,6.1e-07]
[1744644521524,0.001,84550.0,84549.0,0.00200061]
[1744644521721,0.001,84550.0,84549.0,6.1e-07]
[1744644521936,0.237546,84550.0,84549.0,6.1e-07]
[1744644522136,0.236546,84550.0,84549.0,0.00100061]
[1744644522340,0.236543,84551.0,84549.0,0.00100061]
[1744644522547,0.23647873,84551.0,84549.0,0.00100061]
[1744644522817,0.236546,84550.0,84549.0,0.00100061]
[1744644523019,0.2364975,84550.0,84549.0,0.00100061]
[1744644523219,0.236546,84550.0,84549.0,6.1e-07]
[1744644523615,0.237546,84550.0,84549.0,0.00200061]
[1744644526615,0.25919104,84550.0,84549.0,0.00200061]
[1744644527430,0.27001329,84550.0,84549.0,0.00200061]
[1744644528599,0.237546,84550.0,84549.0,0.00200061]
[1744644529110,0.41892839,84550.0,84549.0,0.00200061]
[1744644529496,0.42955745,84550.0,84549.0,0.00200061]
[1744644529699,0.45120131,84550.0,84549.0,0.00200061]
[1744644529907,0.45020131,84550.0,84549.0,6.1e-07]
[1744644530110,0.45220131,84550.0,84549.0,0.00100061]
[1744644530520,0.45020131,84550.0,84549.0,6.1e-07]
[1744644530719,0.45620131,84550.0,84549.0,0.00100061]
[1744644531124,0.45420131,84550.0,84549.0,0.00100061]
[1744644531344,0.46503226,84550.0,84549.0,0.00100061]
[1744644531539,0.46803226,84550.0,84549.0,0.00100061]
[1744644532983,0.88453205,84550.0,84549.0,0.00100061]
[1744644534818,0.81336214,84550.0,84549.0,0.00100061]
[1744644535676,0.43433074,84550.0,84549.0,0.00100061]
[1744644536023,0.42349979,84550.0,84549.0,0.00100061]
[1744644536222,0.42349979,84550.0,84549.0,0.23754961]
[1744644536427,0.66004579,84550.0,84549.0,0.00100061]
[1744644536629,0.41949979,84550.0,84549.0,6.1e-07]
[1744644536839,0.41649979,84550.0,84549.0,0.00100061]
[1744644537037,0.65304579,84550.0,84549.0,0.00100061]
[1744644537279,0.77488733,84550.0,84549.0,0.00100061]
[1744644538057,0.84966467,84550.0,84549.0,0.00100061]
[1744644539086,0.84866467,84550.0,84549.0,6.1e-07]
[1744644539605,0.85242296,84550.0,84549.0,0.00100061]
[1744644540778,1.19442296,84550.0,84549.0,0.00100061]
[1744644540950,1.24352296,84550.0,84549.0,6.1e-07]
[1744644541724,1.26515448,84550.0,84549.0,6.1e-07]
[1744644542727,1.24352296,84550.0,84549.0,6.1e-07]
[1744644543977,1.26513485,84550.0,84549.0,6.1e-07]
[1744644544513,1.27395995,84550.0,84549.0,6.1e-07]
[1744644544721,0.25113685,84532.0,84531.0,0.002]
[1744644544855,0.78823647,84532.0,84531.0,0.00205459]
[1744644545266,0.77369562,84532.0,84531.0,0.00205459]
[1744644545469,0.53709962,84532.0,84531.0,0.23865359]
[1744644545668,0.003,84550.0,84548.0,0.236552]
[1744644545869,0.0029357,84550.0,84547.0,0.011827]
[1744644546092,0.0029357,84550.0,84548.0,0.236551]
[1744644546093,0.0059357,84550.0,84548.0,0.236551]
[1744644546255,0.011828,84545.0,84538.0,0.011828]
[1744644546459,0.011828,84545.0,84541.0,0.011828]
[1744644546698,0.011827,84546.0,84542.0,0.011828]
[1744644546880,0.011827,84546.0,84538.0,0.011828]
[1744644546881,0.011828,84542.0,84538.0,0.011828]
[1744644547079,0.011828,84542.0,84539.0,0.248403]
[1744644547282,0.236563,84544.0,84541.0,0.236571]
[1744644547595,0.236566,84543.0,84540.0,0.248402]
[1744644547774,0.24834358,84544.0,84540.0,0.248402]
[1744644547978,0.248418,84535.0,84531.0,0.00205459]
[1744644548251,0.236591,84534.0,84531.0,0.00205459]
[1744644548380,0.236585,84537.0,84533.0,0.248422]
[1744644548581,0.011828,84539.0,84534.0,0.23659]
[1744644548857,0.011828,84538.0,84534.0,0.011829]
[1744644549049,0.011829,84536.0,84533.0,0.011829]
[1744644549375,0.011827,84547.0,84542.0,0.236566]
[1744644549524,0.236568,84542.0,84537.0,0.011829]
[1744644549733,0.011828,84540.0,84537.0,0.011829]
[1744644549938,0.24842,84535.0,84532.0,0.0497]
[1744644550257,0.011828,84538.0,84532.0,0.0497]
[1744644550258,0.001,84538.0,84537.0,0.248411]
[1744644550416,0.011828,84541.0,84538.0,0.248406]
[1744644550785,0.011828,84541.0,84532.0,0.0497]
[1744644550786,0.011828,84540.0,84533.0,0.011829]
[1744644550945,0.012828,84542.0,84539.0,0.248405]
[1744644551148,0.249397,84542.0,84539.0,0.011828]
[1744644551466,0.236571,84541.0,84539.0,0.011828]
[1744644551770,0.236574,84540.0,84536.0,0.236582]
[1744644552069,0.011828,84543.0,84540.0,0.236574]
[1744644552070,0.236566,84543.0,84540.0,0.236574]
[1744644552453,0.011829,84537.0,84512.0,0.001]
[1744644552613,0.248407,84539.0,84535.0,0.248416]
[1744644552819,0.236585,84536.0,84532.0,0.0497]
[1744644553074,0.011829,84537.0,84532.0,0.061529]
[1744644553274,0.011828,84544.0,84539.0,0.236577]
[1744644553478,0.011827,84547.0,84544.0,0.011828]
[1744644553640,0.011827,84548.0,84543.0,0.011828]
[1744644553838,0.011827,84546.0,84543.0,0.011828]
[1744644554243,0.2484,84541.0,84537.0,0.248411]
[1744644554441,0.2484,84541.0,84538.0,0.236579]
[1744644554647,0.248397,84542.0,84538.0,0.248407]
[1744644554842,0.236572,84541.0,84538.0,0.011828]
[1744644555048,0.248402,84540.0,84536.0,0.236585]
[1744644555249,0.011828,84538.0,84534.0,0.248418]
[1744644555436,0.24841,84538.0,84535.0,0.236586]
[1744644555882,0.011828,84538.0,84532.0,0.298123]
[1744644556082,0.248406,84539.0,84536.0,0.236584]
[1744644556528,0.248402,84540.0,84539.0,0.00024159]
[1744644556754,0.24833765,84540.0,84539.0,0.00024159]
[1744644559397,0.24933765,84540.0,84539.0,0.00024159]
[1744644559603,0.24927329,84540.0,84539.0,0.00024159]
[1744644560822,0.24904453,84540.0,84539.0,0.00024159]
[1744644561747,0.001,84540.0,84539.0,0.23681859]
[1744644562159,0.001,84540.0,84539.0,0.00024159]
[1744644562313,0.237574,84540.0,84539.0,0.00024159]
[1744644563698,0.238574,84540.0,84539.0,0.00024159]
[1744644564152,0.237574,84540.0,84539.0,0.00024159]
[1744644565164,0.46425639,84540.0,84539.0,0.00024159]
[1744644565698,0.46525639,84540.0,84539.0,0.00024159]
[1744644566033,0.0485,84540.0,84539.0,0.00024159]
[1744644566246,0.238574,84540.0,84539.0,0.00024159]
[1744644568436,0.002,84540.0,84539.0,0.00024159]
[1744644568628,0.002,84540.0,84539.0,0.23681859]
[1744644568773,0.002,84540.0,84539.0,0.00024159]
[1744644568972,0.238574,84540.0,84539.0,0.00024159]
[1744644569224,0.002,84540.0,84539.0,0.00024159]
[1744644569559,0.238574,84540.0,84539.0,0.00024159]
[1744644570323,0.002,84540.0,84539.0,0.00024159]
[1744644572858,0.238574,84540.0,84539.0,0.00024159]
[1744644575755,0.35941554,84540.0,84539.0,0.00024159]
[1744644576581,0.37023547,84540.0,84539.0,0.00024159]
[1744644576801,0.48407483,84540.0,84539.0,0.00024159]
[1744644577010,0.48401046,84540.0,84539.0,0.00024159]
[1744644577376,0.49855131,84540.0,84539.0,0.00024159]
[1744644577571,0.4984869,84540.0,84539.0,0.00024159]
[1744644578494,1.25474498,84540.0,84539.0,5.9e-07]
[1744644579039,1.25374498,84540.0,84539.0,5.9e-07]
[1744644579255,1.25674498,84540.0,84539.0,5.9e-07]
[1744644579460,1.25587376,84540.0,84539.0,5.9e-07]
[1744644579720,1.26087376,84540.0,84539.0,5.9e-07]
[1744644579930,1.25787376,84540.0,84539.0,5.9e-07]
[1744644580121,1.26187376,84540.0,84539.0,5.9e-07]
[1744644580334,0.576596,84532.0,84531.0,1.8e-07]
[1744644580550,1.17583647,84532.0,84531.0,1.8e-07]
[1744644580952,1.19747583,84532.0,84531.0,1.8e-07]
[1744644581455,1.20829576,84532.0,84531.0,1.8e-07]
[1744644581653,1.21129576,84532.0,84531.0,1.8e-07]
[1744644581810,1.21429576,84532.0,84531.0,1.8e-07]
[1744644582832,0.59115985,84524.0,84523.0,3.8e-07]
[1744644583048,0.236669,84506.0,84501.0,0.0024221]
[1744644583248,0.35751054,84506.0,84501.0,0.0024221]
[1744644583398,0.35751054,84506.0,84505.0,0.00056079]
[1744644583605,0.3791499,84506.0,84505.0,0.00056079]
[1744644584379,0.3801499,84506.0,84505.0,0.00056079]
[1744644585253,0.35851054,84506.0,84505.0,0.00056079]
[1744644586233,0.36051054,84506.0,84505.0,0.00056079]
[1744644587101,0.35951054,84506.0,84505.0,0.00056079]
[1744644587505,0.37405139,84506.0,84505.0,0.00056079]
[1744644587728,0.88390947,84506.0,84505.0,0.00056079]
[1744644587929,0.90545319,84506.0,84505.0,0.00056079]
[1744644588215,0.91922601,84506.0,84505.0,0.00056079]
[1744644588611,0.91722601,84506.0,84505.0,0.00056079]
[1744644588948,1.25422601,84506.0,84505.0,7.9e-07]
[1744644589145,1.26022601,84506.0,84505.0,7.9e-07]
[1744644590901,1.24945319,84506.0,84505.0,7.9e-07]
[1744644591302,1.22790947,84506.0,84505.0,7.9e-07]
[1744644592095,1.24943373,84506.0,84505.0,7.9e-07]
[1744644593170,1.22790947,84506.0,84505.0,7.9e-07]
[1744644593370,1.22490947,84506.0,84505.0,7.9e-07]
[1744644593578,1.22190947,84506.0,84505.0,7.9e-07]
[1744644594034,1.23390947,84506.0,84505.0,7.9e-07]
[1744644594508,1.22890947,84506.0,84505.0,7.9e-07]
[1744644594714,1.23390947,84506.0,84505.0,7.9e-07]
[1744644598383,1.39666947,84506.0,84505.0,7.9e-07]
[1744644599053,1.33542862,84506.0,84505.0,7.9e-07]
[1744644599279,1.28852862,84506.0,84505.0,7.9e-07]
[1744644599830,1.29806947,84506.0,84505.0,7.9e-07]
[1744644600273,0.42625808,84506.0,84505.0,7.9e-07]
[1744644600473,0.41925808,84506.0,84505.0,7.9e-07]
[1744644600710,0.01089736,84508.0,84507.0,0.236666]
[1744644600882,0.248482,84513.0,84509.0,0.011833]
[1744644601084,0.41625808,84517.0,84514.0,0.011832]
[1744644601259,0.239669,84506.0,84505.0,7.9e-07]
[1744644601650,0.236669,84506.0,84505.0,7.9e-07]
[1744644601870,0.35751054,84506.0,84505.0,7.9e-07]
[1744644602284,0.236669,84506.0,84505.0,7.9e-07]
[1744644602731,0.37205139,84506.0,84505.0,7.9e-07]
[1744644603142,0.71205139,84506.0,84505.0,7.9e-07]
[1744644603748,0.71605139,84506.0,84505.0,7.9e-07]
[1744644603912,0.71505139,84506.0,84505.0,7.9e-07]
[1744644604295,0.71705139,84506.0,84505.0,7.9e-07]
[1744644604502,0.71205139,84506.0,84505.0,7.9e-07]
[1744644604842,1.13230947,84506.0,84505.0,7.9e-07]
[1744644605005,1.13330947,84506.0,84505.0,7.9e-07]
[1744644605582,0.80331481,84506.0,84505.0,7.9e-07]
[1744644605875,0.66092708,84506.0,84505.0,7.9e-07]
[1744644606214,0.78176862,84506.0,84505.0,7.9e-07]
[1744644606696,0.77876862,84506.0,84505.0,7.9e-07]
[1744644606841,0.79330947,84506.0,84505.0,7.9e-07]
[1744644607042,0.81886424,84506.0,84505.0,7.9e-07]
[1744644607257,0.81386424,84506.0,84505.0,7.9e-07]
[1744644607431,0.81486424,84506.0,84505.0,7.9e-07]
[1744644607838,0.82865081,84506.0,84505.0,7.9e-07]
[1744644608234,0.82565081,84506.0,84505.0,7.9e-07]
[1744644608643,0.82965081,84506.0,84505.0,7.9e-07]
[1744644609678,0.59123785,84496.0,84495.0,7.9e-07]
[1744644609915,0.92453939,84496.0,84495.0,7.9e-07]
[1744644610057,1.37313881,84496.0,84495.0,7.9e-07]
[1744644610261,0.236764,84472.0,84471.0,0.0024222]
[1744644610558,0.35760554,84472.0,84471.0,0.0024222]
[1744644610762,0.25831877,84472.0,84471.0,0.0024222]
[1744644611388,0.24755057,84472.0,84471.0,0.0024222]
[1744644611890,0.24867565,84472.0,84471.0,0.0024222]
[1744644612100,0.36951719,84472.0,84471.0,0.0024222]
[1744644612261,0.40563856,84472.0,84471.0,0.0024222]
[1744644612682,0.82189664,84472.0,84471.0,0.0024222]
[1744644612890,0.82189664,84472.0,84466.0,0.001]
[1744644612891,0.25135285,84455.0,84429.0,0.011844]
[1744644613116,0.81003299,84455.0,84427.0,0.01125316]
[1744644613345,1.15003299,84455.0,84420.0,0.1632221]
[1744644613541,1.20991956,84455.0,84424.0,0.011844]
[1744644613743,1.20991956,84455.0,84426.0,0.0110974]
[1744644613951,1.20991956,84455.0,84422.0,0.236903]
[1744644613952,1.20991956,84455.0,84421.0,0.011845]
[1744644614149,1.20991956,84455.0,84428.0,0.011844]
[1744644614349,1.20991956,84455.0,84432.0,0.011843]
[1744644614544,1.21091956,84455.0,84433.0,0.011843]
[1744644614752,1.21091956,84455.0,84431.0,0.248721]
[1744644614753,1.21291956,84455.0,84431.0,0.248721]
[1744644614993,1.21191956,84455.0,84431.0,0.248721]
[1744644615195,1.21191956,84455.0,84434.0,0.011843]
[1744644615399,1.21491956,84455.0,84437.0,0.011843]
[1744644615601,0.45362517,84455.0,84452.0,0.248661]
[1744644615932,0.45362517,84455.0,84449.0,0.24867]
[1744644615933,0.4428386,84455.0,84449.0,0.24867]
[1744644616136,0.4428386,84455.0,84450.0,0.011841]
[1744644616442,0.4428386,84455.0,84454.0,0.2372371]
[1744644616443,0.005,84455.0,84454.0,0.2372371]
[1744644616557,0.005,84455.0,84454.0,0.35807864]
[1744644616756,0.005,84455.0,84454.0,0.36904428]
[1744644617003,0.002,84455.0,84454.0,0.41594428]
[1744644617302,0.00012508,84472.0,84471.0,0.236767]
[1744644617707,0.00012508,84472.0,84470.0,0.236768]
[1744644617938,0.00012508,84472.0,84471.0,0.00236737]
[1744644618186,0.236784,84465.0,84462.0,0.011839]
[1744644618371,0.011839,84464.0,84461.0,0.011839]
[1744644618570,0.248622,84466.0,84462.0,0.011839]
[1744644618771,0.011839,84465.0,84462.0,0.011839]
[1744644618977,0.248626,84464.0,84459.0,0.01184]
[1744644619178,0.011839,84464.0,84460.0,0.248637]
[1744644619375,0.011838,84467.0,84462.0,0.248631]
[1744644619584,0.248609,84470.0,84464.0,0.011839]
[1744644619786,0.00312508,84472.0,84471.0,0.236767]
[1744644620184,0.00012508,84472.0,84467.0,0.011838]
[1744644620383,0.236767,84471.0,84467.0,0.248614]
[1744644620587,0.00012508,84472.0,84471.0,0.001]
[1744644621158,0.00012508,84472.0,84471.0,0.236767]
[1744644621359,0.00112508,84472.0,84471.0,0.236767]
[1744644621564,0.011838,84470.0,84467.0,0.002]
[1744644621783,0.236774,84469.0,84467.0,0.002]
[1744644622019,0.011838,84467.0,84461.0,0.011839]
[1744644622174,0.248616,84468.0,84463.0,0.011839]
[1744644622374,0.011838,84470.0,84465.0,0.236784]
[1744644622600,0.011838,84468.0,84465.0,0.248623]
[1744644622945,0.011838,84468.0,84463.0,0.011839]
[1744644622946,0.236781,84467.0,84463.0,0.011839]
[1744644623119,0.011838,84467.0,84464.0,0.011839]
[1744644623351,0.01296308,84472.0,84464.0,0.011839]
[1744644623352,0.00012508,84472.0,84470.0,0.236768]
[1744644623637,0.00012508,84472.0,84471.0,0.00236721]
[1744644623930,0.00012508,84472.0,84470.0,0.236768]
[1744644624496,0.00012508,84472.0,84471.0,0.1232088]
[1744644624718,0.00112508,84472.0,84471.0,0.12284154]
[1744644625967,0.00112508,84472.0,84471.0,0.12384154]
[1744644626157,0.00112508,84472.0,84471.0,0.003]
[1744644626529,0.00012508,84472.0,84471.0,0.001]
[1744644626933,0.00112508,84472.0,84471.0,0.001]
[1744644627272,0.00012508,84472.0,84471.0,0.001]
[1744644627468,0.23788908,84472.0,84471.0,0.003]
[1744644627674,0.00112508,84472.0,84471.0,0.003]
[1744644628051,0.00112508,84472.0,84471.0,0.00536732]
[1744644628272,0.00112508,84472.0,84471.0,0.12620886]
[1744644628676,0.00112508,84472.0,84471.0,0.12384154]
[1744644629077,0.00112508,84472.0,84471.0,0.003]
[1744644629914,0.00112508,84472.0,84471.0,0.00536739]
[1744644630113,0.19093327,84510.0,84471.0,0.00536739]
[1744644630114,0.41625808,84519.0,84471.0,0.94954978]
[1744644630311,0.011829,84533.0,84523.0,0.011831]
[1744644630516,0.236602,84530.0,84524.0,0.00236593]
[1744644630732,0.011833,84508.0,84501.0,0.236682]
[1744644630923,0.011833,84508.0,84501.0,0.011834]
[1744644631127,0.011832,84512.0,84508.0,0.236662]
[1744644631283,0.248488,84511.0,84507.0,0.011833]
[1744644631477,0.236669,84507.0,84505.0,0.17638611]
[1744644631688,0.248526,84498.0,84493.0,0.176955]
[1744644631894,0.236694,84497.0,84494.0,0.13267654]
[1744644632124,0.011834,84501.0,84497.0,0.011834]